fUST/lending_fUST_20240612
["ID","MTS","AMOUNT","RATE_DAILY","PERIOD"]
[329225524,1718189449004,-476.69963654,0.00018,2]
[329225526,1718189449015,-1036.68456979,0.00018,2]
[329225528,1718189449026,-204.17791001,0.00018,2]
[329225530,1718189449037,-1072.99,0.00018081,2]
[329225532,1718189449048,-1072.99,0.00018081,2]
[329225534,1718189449059,-1072.99,0.00018081,2]
[329225536,1718189449070,-1072.99,0.00018081,2]
[329225538,1718189449082,-1072.99,0.00018081,2]
[329225540,1718189449093,-1072.99,0.00018081,2]
[329225542,1718189449106,-3677.7192,0.00018082,2]
[329225544,1718189449117,-500.0,0.00018082,2]
[329225546,1718189449128,-500.0,0.00018082,2]
[329225548,1718189449137,-500.0,0.00018082,2]
[329225550,1718189449148,-500.0,0.00018082,2]
[329225552,1718189449158,-500.0,0.00018082,2]
[329225554,1718189449169,-500.0,0.00018082,4]
[329225556,1718189449181,-500.0,0.00018082,2]
[329225557,1718189449192,-250.0,0.00018082,2]
[329225558,1718189449202,-505.69946728,0.00018082,2]
[329225559,1718189449213,-500.0,0.00018082,2]
[329225561,1718189449224,-580.83,0.00018082,2]
[329225563,1718189449234,-500.0,0.00018082,2]
[329225565,1718189449245,-500.0,0.00018082,2]
[329225567,1718189449256,-500.0,0.00018082,2]
[329225569,1718189449267,-723.66,0.00018082,2]
[329225571,1718189449277,-500.0,0.00018082,2]
[329225573,1718189449288,-500.0,0.00018082,2]
[329225575,1718189449298,-500.0,0.00018082,2]
[329225577,1718189449309,-151.0,0.00018082,2]
[329225579,1718189449320,-500.0,0.00018082,2]
[329225581,1718189449330,-1000.0,0.00018082,2]
[329225583,1718189449341,-1000.0,0.00018082,2]
[329225585,1718189449356,-1000.0,0.00018082,2]
[329225587,1718189449367,-1000.0,0.00018082,2]
[329225589,1718189449377,-1000.0,0.00018082,2]
[329225591,1718189449388,-1000.0,0.00018082,2]
[329225593,1718189449398,-1000.0,0.00018082,2]
[329225595,1718189449408,-1000.0,0.00018082,2]
[329225597,1718189449419,-1000.0,0.00018082,2]
[329225599,1718189449431,-1000.0,0.00018082,2]
[329225601,1718189449442,-1000.0,0.00018082,2]
[329225603,1718189449467,-1000.0,0.00018082,2]
[329225605,1718189449478,-1000.0,0.00018082,2]
[329225607,1718189449489,-1000.0,0.00018082,2]
[329225609,1718189449499,-1000.0,0.00018082,2]
[329225611,1718189449510,-1000.0,0.00018082,2]
[329225613,1718189449520,-221.989309,0.00018082,2]
[329225615,1718189449530,-1708.993863,0.00018082,2]
[329225617,1718189449540,-1708.993863,0.00018082,2]
[329225618,1718189449550,-151.0,0.00018082,2]
[329225620,1718189449561,-500.0,0.00018082,2]
[329225623,1718189449571,-825.55,0.00018082,2]
[329225624,1718189449581,-500.0,0.00018082,2]
[329225626,1718189449592,-501.94091,0.00018082,2]
[329225629,1718189449602,-501.94091,0.00018082,2]
[329225631,1718189449613,-151.14377,0.00018082,2]
[329225632,1718189449623,-151.295432,0.00018082,2]
[329225635,1718189449634,-500.0,0.00018082,2]
[329225636,1718189449644,-151.295432,0.00018082,2]
[329225638,1718189449655,-1727.59,0.00018082,2]
[329225640,1718189449665,-4616.456206,0.00018082,2]
[329225643,1718189449675,-4616.456206,0.00018082,2]
[329225645,1718189449686,-7063.79,0.00018082,2]
[329225647,1718189449697,-786.1,0.00018082,2]
[329225649,1718189449708,-223.433594,0.00018082,2]
[329225650,1718189449718,-1740.19,0.00018082,2]
[329225653,1718189449729,-223.433594,0.00018082,2]
[329225654,1718189449739,-810.78,0.00018082,2]
[329225656,1718189449750,-599.88311515,0.00018082,2]
[329225658,1718189449760,-1974.712884,0.00018082,2]
[329225660,1718189449770,-500.0,0.00018082,2]
[329225662,1718189449781,-990.530376,0.00018082,2]
[329225664,1718189449792,-1974.712884,0.00018082,2]
[329225666,1718189449801,-990.530376,0.00018082,2]
[329225668,1718189449811,-151.0,0.00018082,2]
[329225670,1718189449821,-3275.426219,0.00018082,2]
[329225672,1718189449832,-151.0,0.00018082,2]
[329225674,1718189449841,-3275.426219,0.00018082,2]
[329225676,1718189449852,-500.0,0.00018082,2]
[329225678,1718189449862,-500.0,0.00018082,2]
[329225680,1718189449873,-3655.11,0.00018082,2]
[329225682,1718189449883,-1256.97,0.00018082,2]
[329225684,1718189449894,-151.0,0.00018082,2]
[329225686,1718189449904,-151.0,0.00018082,2]
[329225688,1718189449914,-151.0,0.00018082,2]
[329225690,1718189449924,-500.0,0.00018082,2]
[329225692,1718189449935,-619.685294,0.00018082,2]
[329225694,1718189449944,-619.685294,0.00018082,2]
[329225696,1718189449955,-8725.92,0.00018082,2]
[329225698,1718189449965,-151.0,0.00018082,2]
[329225700,1718189449976,-18538.88,0.00018082,2]
[329225702,1718189449986,-500.34,0.00018082,2]
[329225704,1718189449996,-254.54796078,0.00018082,2]
[329225706,1718189450007,-500.0,0.00018082,2]
[329225708,1718189450017,-151.0,0.00018082,2]
[329225710,1718189450028,-151.0,0.00018082,2]
[329225712,1718189450038,-3654.01,0.00018082,2]
[329225714,1718189450048,-1018.71,0.00018082,2]
[329225716,1718189450058,-1453.838642,0.00018082,2]
[329225718,1718189450068,-1453.838642,0.00018082,2]
[329225720,1718189450078,-3344.13,0.00018082,2]
[329225722,1718189450088,-155.02635448,0.000181,2]
[329225724,1718189450098,-1034.3,0.00018106,2]
[329225726,1718189450110,-1034.3,0.00018253,2]
[329225728,1718189450121,-1437.58667517,0.000183,2]
[329225730,1718189450132,-5281.92082876,0.00018314,2]
[329225732,1718189450143,-600.0,0.00018328,2]
[329225734,1718189450154,-151.0,0.00018351,2]
[329225736,1718189450164,-151.0,0.00018351,2]
[329225738,1718189450175,-279.992418,0.00018351,2]
[329225740,1718189450185,-279.992418,0.00018351,2]
[329225742,1718189450196,-8303.9827281,0.00018352,13]
[329225744,1718189450206,-99359.61419,0.00018352,2]
[329225746,1718189450216,-151.619067,0.00018352,2]
[329225748,1718189450227,-168.9577,0.00018352,2]
[329225750,1718189450237,-168.9577,0.00018352,2]
[329225752,1718189450248,-190.042476,0.00018352,2]
[329225754,1718189450260,-190.042476,0.00018352,2]
[329225756,1718189450270,-158.949387,0.00018352,2]
[329225758,1718189450281,-158.949387,0.00018352,2]
[329225760,1718189450292,-151.0,0.00018352,2]
[329225762,1718189450303,-151.0,0.00018352,2]
[329225764,1718189450313,-151.0,0.00018352,2]
[329225766,1718189450324,-151.0,0.00018352,2]
[329225768,1718189450334,-151.635083,0.00018352,2]
[329225770,1718189450348,-1708.993863,0.00018352,2]
[329225772,1718189450361,-1708.993863,0.00018352,2]
[329225774,1718189450372,-151.0,0.00018352,2]
[329225776,1718189450383,-501.94091,0.00018352,2]
[329225778,1718189450396,-501.94091,0.00018352,2]
[329225780,1718189450407,-151.295432,0.00018352,2]
[329225782,1718189450420,-151.295432,0.00018352,2]
[329225784,1718189450431,-4616.456206,0.00018352,2]
[329225786,1718189450441,-4616.456206,0.00018352,2]
[329225788,1718189450452,-223.433594,0.00018352,2]
[329225790,1718189450484,-223.433594,0.00018352,2]
[329225792,1718189450497,-1974.712884,0.00018352,2]
[329225795,1718189450509,-990.530376,0.00018352,2]
[329225796,1718189450520,-1974.712884,0.00018352,2]
[329225798,1718189450532,-990.530376,0.00018352,2]
[329225800,1718189450544,-3275.426219,0.00018352,2]
[329225802,1718189450557,-151.0,0.00018352,2]
[329225805,1718189450569,-1033.55583832,0.00018352,2]
[329225815,1718189450676,-513.50225528,0.00016438,2]
[329225817,1718189450687,-500.0,0.00016438,2]
[329225819,1718189450697,-500.0,0.00016438,2]
[329225821,1718189450708,-500.0,0.00016712,2]
[329225823,1718189450719,-500.0,0.00016986,2]
[329225825,1718189450729,-1722.77407334,0.00018352,2]
[329226296,1718189542767,155.02015262,9.999e-05,2]
[329226297,1718189691604,3000.0,0.00013699,2]
[329226299,1718190081795,768.33,0.00010959,2]
[329226383,1718190633437,-2475.34668873,0.00014578,2]
[329226384,1718190633449,-366.097425,0.00014579,2]
[329226385,1718190633460,-869.7753024,0.00014718,2]
[329226386,1718190633471,-1719.7263211,0.00014749,2]
[329226387,1718190633482,-300.0,0.00014785,2]
[329226388,1718190633492,-300.0,0.00014785,2]
[329226389,1718190633505,-1101.35863609,0.00014786,2]
[329226390,1718190633519,-5120.16795895,0.00014786,2]
[329226487,1718190639487,-3082.92709602,0.00014786,2]
[329226489,1718190639501,-15595.54630894,0.00014786,2]
[329226491,1718190639512,-256.9474619,0.00014879,2]
[329226493,1718190639523,-250.0,0.0001504,2]
[329226495,1718190639534,-262.16993722,0.00015641,2]
[329226497,1718190639545,-218.6,0.00016077,2]
[329226499,1718190639556,-349.0,0.00016184,2]
[329226501,1718190639569,-218.6,0.00016229,2]
[329226503,1718190639582,-300.0,0.00016263,2]
[329226505,1718190639596,-856.573813,0.00016338,2]
[329226507,1718190639608,-218.6,0.00016382,2]
[329226509,1718190639619,-155.13121493,0.00016436,2]
[329226511,1718190639630,-338.22193733,0.00016437,2]
[329226513,1718190639642,-500.0,0.00016438,2]
[329226515,1718190639653,-504.55603488,0.00016438,2]
[329226517,1718190639663,-540.85990708,0.00016438,2]
[329226519,1718190639678,-186.00261143,0.00016438,2]
[329226521,1718190639690,-500.0,0.00016438,2]
[329226523,1718190639701,-500.0,0.00016438,2]
[329226525,1718190639712,-500.0,0.00016438,2]
[329226527,1718190639723,-500.0,0.00016438,2]
[329226529,1718190639737,-500.0,0.00016438,2]
[329226530,1718190639750,-517.09568311,0.00016438,2]
[329226532,1718190639762,-500.0,0.00016438,2]
[329226534,1718190639773,-500.0,0.00016438,2]
[329226536,1718190639785,-500.0,0.00016438,2]
[329226538,1718190639796,-500.0,0.00016438,4]
[329226540,1718190639807,-504.94811632,0.00016438,2]
[329226542,1718190639819,-581.58374777,0.00016438,2]
[329226544,1718190639831,-250.0,0.00016438,2]
[329226546,1718190639842,-500.0,0.00016438,2]
[329226548,1718190639853,-500.0,0.00016438,2]
[329226550,1718190639864,-500.0,0.00016438,2]
[329226552,1718190639875,-500.0,0.00016438,2]
[329226554,1718190639885,-500.0,0.00016438,2]
[329226556,1718190639910,-500.0,0.00016438,2]
[329226558,1718190639926,-500.0,0.00016438,2]
[329226560,1718190639937,-500.0,0.00016438,2]
[329226562,1718190639948,-500.0,0.00016438,2]
[329226564,1718190639959,-500.0,0.00016438,2]
[329226566,1718190639970,-500.0,0.00016438,2]
[329226568,1718190639983,-502.67077635,0.00016438,2]
[329226570,1718190639995,-500.0,0.00016438,2]
[329226572,1718190640006,-500.0,0.00016438,2]
[329226574,1718190640019,-500.0,0.00016438,2]
[329226576,1718190640032,-280.97830287,0.00016438,2]
[329226578,1718190640042,-500.0,0.00016438,2]
[329226580,1718190640054,-500.0,0.00016438,2]
[329226582,1718190640066,-135.61250233,0.00016438,2]
[329226584,1718190640083,-364.38749767,0.00016438,2]
[329226586,1718190640095,-500.0,0.00016438,2]
[329226588,1718190640106,-502.38592744,0.00016438,2]
[329226590,1718190640117,-503.39915285,0.00016438,2]
[329226592,1718190640128,-500.0,0.00016438,2]
[329226594,1718190640139,-500.0,0.00016438,2]
[329226596,1718190640155,-500.0,0.00016438,2]
[329226598,1718190640166,-501.31342103,0.00016438,2]
[329226600,1718190640177,-500.0,0.00016438,2]
[329226602,1718190640188,-500.0,0.00016438,2]
[329226604,1718190640200,-500.0,0.00016438,2]
[329226606,1718190640210,-500.0,0.00016438,2]
[329226608,1718190640221,-495.71,0.00016438,2]
[329226610,1718190640233,-500.0,0.00016438,2]
[329226612,1718190640245,-500.0,0.00016438,2]
[329226614,1718190640257,-500.0,0.00016438,2]
[329226616,1718190640269,-500.0,0.00016438,2]
[329226618,1718190640284,-500.0,0.00016438,2]
[329226621,1718190640295,-500.0,0.00016438,2]
[329226623,1718190640308,-500.0,0.00016438,2]
[329226624,1718190640319,-500.0,0.00016438,2]
[329226627,1718190640330,-500.0,0.00016438,2]
[329226628,1718190640341,-500.0,0.00016438,2]
[329226631,1718190640352,-500.0,0.00016438,2]
[329226632,1718190640363,-500.0,0.00016438,2]
[329226635,1718190640376,-500.0,0.00016438,2]
[329226637,1718190640387,-500.0,0.00016438,2]
[329226639,1718190640398,-500.0,0.00016438,2]
[329226642,1718190640409,-500.0,0.00016438,2]
[329226644,1718190640422,-500.0,0.00016438,2]
[329226647,1718190640432,-500.0,0.00016438,2]
[329226649,1718190640444,-500.0,0.00016438,2]
[329226651,1718190640454,-500.0,0.00016438,2]
[329226653,1718190640466,-500.0,0.00016438,2]
[329226655,1718190640478,-500.0,0.00016438,2]
[329226657,1718190640489,-500.0,0.00016438,2]
[329226659,1718190640499,-500.0,0.00016438,2]
[329226661,1718190640510,-532.1395488,0.00016438,2]
[329226663,1718190640521,-500.0,0.00016438,2]
[329226665,1718190640531,-500.0,0.00016438,2]
[329226667,1718190640542,-500.0,0.00016438,2]
[329226669,1718190640553,-379.35208139,0.00016438,2]
[329226671,1718190640565,-500.60215893,0.00016438,2]
[329226673,1718190640578,-616.38783419,0.00016438,2]
[329226675,1718190640590,-500.0,0.00016438,2]
[329226677,1718190640601,-500.0,0.00016438,2]
[329226679,1718190640612,-500.0,0.00016438,2]
[329226681,1718190640623,-500.0,0.00016438,2]
[329226683,1718190640634,-500.0,0.00016438,2]
[329226685,1718190640646,-632.07,0.00016438,2]
[329226687,1718190640657,-500.0,0.00016438,2]
[329226689,1718190640668,-500.0,0.00016438,2]
[329226691,1718190640679,-500.0,0.00016438,2]
[329226693,1718190640691,-500.0,0.00016438,2]
[329226695,1718190640701,-500.0,0.00016438,2]
[329226697,1718190640715,-500.0,0.00016438,2]
[329226699,1718190640727,-500.0,0.00016438,2]
[329226701,1718190640741,-506.55197469,0.00016438,2]
[329226703,1718190640753,-500.0,0.00016438,2]
[329226705,1718190640764,-500.0,0.00016438,2]
[329226707,1718190640776,-500.0,0.00016438,2]
[329226709,1718190640788,-500.0,0.00016438,2]
[329226711,1718190640798,-500.0,0.00016438,2]
[329226713,1718190640810,-500.0,0.00016438,2]
[329226715,1718190640823,-500.0,0.00016438,2]
[329226717,1718190640835,-500.0,0.00016438,2]
[329226719,1718190640846,-168.71066949,0.00016438,2]
[329226721,1718190640857,-500.0,0.00016438,2]
[329226723,1718190640868,-500.0,0.00016438,2]
[329226725,1718190640878,-500.0,0.00016438,2]
[329226727,1718190640897,-500.0,0.00016438,2]
[329226729,1718190640914,-500.0,0.00016438,2]
[329226731,1718190640928,-500.0,0.00016438,2]
[329226733,1718190640939,-500.0,0.00016438,2]
[329226735,1718190640951,-500.0,0.00016438,2]
[329226737,1718190640961,-500.0,0.00016438,2]
[329226739,1718190640973,-500.0,0.00016438,2]
[329226741,1718190640984,-500.0,0.00016438,2]
[329226743,1718190640996,-500.0,0.00016438,2]
[329226745,1718190641007,-500.0,0.00016438,2]
[329226747,1718190641018,-500.0,0.00016438,2]
[329226749,1718190641029,-500.0,0.00016438,2]
[329226751,1718190641040,-500.0,0.00016438,2]
[329226753,1718190641050,-507.82239086,0.00016438,2]
[329226755,1718190641061,-500.0,0.00016438,2]
[329226757,1718190641072,-500.0,0.00016438,2]
[329226759,1718190641083,-500.0,0.00016438,2]
[329226761,1718190641095,-500.0,0.00016438,2]
[329226763,1718190641106,-500.0,0.00016438,2]
[329226765,1718190641117,-391.87892282,0.00016438,2]
[329226767,1718190641127,-500.0,0.00016438,2]
[329226769,1718190641138,-756.75,0.00016438,2]
[329226771,1718190641149,-500.0,0.00016438,2]
[329226773,1718190641160,-500.0,0.00016438,2]
[329226775,1718190641171,-544.21504994,0.00016438,2]
[329226777,1718190641184,-500.0,0.00016438,2]
[329226779,1718190641195,-501.29929914,0.00016438,2]
[329226781,1718190641207,-500.0,0.00016438,2]
[329226783,1718190641217,-395.55217758,0.00016438,2]
[329226785,1718190641230,-1670.37,0.00016438,2]
[329226787,1718190641240,-500.0,0.00016438,2]
[329226789,1718190641251,-500.0,0.00016438,2]
[329226791,1718190641262,-805.35,0.00016438,2]
[329226793,1718190641273,-516.53957628,0.00016438,2]
[329226795,1718190641284,-500.0,0.00016438,2]
[329226797,1718190641295,-1583.62,0.00016438,2]
[329226799,1718190641306,-209.36471688,0.00016438,2]
[329226801,1718190641316,-500.0,0.00016438,2]
[329226803,1718190641326,-537.06028038,0.00016438,2]
[329226805,1718190641338,-6769.46,0.00016438,2]
[329226807,1718190641349,-701.7,0.00016438,2]
[329226809,1718190641360,-701.7,0.00016438,2]
[329226811,1718190641370,-701.7,0.00016438,2]
[329226813,1718190641380,-505.67910671,0.00016438,2]
[329226815,1718190641391,-500.0,0.00016438,2]
[329226817,1718190641401,-743.21,0.00016438,2]
[329226834,1718190641562,-500.0,0.00016438,2]
[329226836,1718190641573,-500.0,0.00016438,2]
[329226838,1718190641584,-500.0,0.00016438,2]
[329226840,1718190641596,-500.0,0.00016438,2]
[329226842,1718190641607,-500.0,0.00016438,2]
[329226844,1718190641619,-500.0,0.00016438,2]
[329226846,1718190641630,-500.0,0.00016438,2]
[329226848,1718190641641,-500.0,0.00016438,2]
[329226850,1718190641651,-500.0,0.00016438,2]
[329226852,1718190641662,-500.0,0.00016438,2]
[329226854,1718190641673,-500.0,0.00016438,2]
[329226856,1718190641683,-500.0,0.00016438,2]
[329226858,1718190641694,-500.0,0.00016438,2]
[329226860,1718190641707,-500.0,0.00016438,2]
[329226861,1718190641717,-3350.52,0.00016438,2]
[329226863,1718190641728,-500.0,0.00016438,2]
[329226865,1718190641743,-500.0,0.00016438,2]
[329226867,1718190641754,-1152.23,0.00016438,2]
[329226869,1718190641764,-507.74603429,0.00016438,2]
[329226871,1718190641775,-236.5197406,0.00016438,2]
[329226873,1718190641787,-16993.97,0.00016438,2]
[329226875,1718190641797,-501.42818865,0.00016438,2]
[329226877,1718190641809,-500.0,0.00016438,2]
[329226879,1718190641821,-500.0,0.00016438,2]
[329226881,1718190641831,-11955.37,0.00016438,2]
[329226883,1718190641841,-500.0,0.00016438,2]
[329226885,1718190641852,-505.99340678,0.00016438,2]
[329226887,1718190641863,-976.27,0.00016438,2]
[329226889,1718190641873,-500.0,0.00016438,2]
[329226891,1718190641884,-500.0,0.00016438,2]
[329226892,1718190641915,-500.0,0.00016438,2]
[329226894,1718190641927,-500.0,0.00016438,2]
[329226897,1718190641938,-500.0,0.00016438,2]
[329226898,1718190641949,-3065.45,0.00016438,2]
[329226900,1718190641961,-502.93715686,0.00016438,2]
[329226902,1718190641973,-500.0,0.00016438,2]
[329226905,1718190641985,-500.0,0.00016438,2]
[329226906,1718190641996,-506.32843551,0.00016438,2]
[329226909,1718190642007,-500.0,0.00016438,2]
[329226911,1718190642018,-500.0,0.00016438,2]
[329226913,1718190642029,-3349.51,0.00016438,2]
[329226915,1718190642040,-404.57647126,0.00016438,2]
[329226916,1718190642050,-500.0,0.00016438,2]
[329226918,1718190642060,-500.0,0.00016438,2]
[329226920,1718190642071,-500.0,0.00016438,2]
[329226922,1718190642083,-500.0,0.00016438,2]
[329226924,1718190642094,-500.0,0.00016438,2]
[329226926,1718190642105,-218.6,0.00016534,2]
[329226928,1718190642117,-2000.0,0.00016612,2]
[329226931,1718190642128,-218.6,0.00016686,2]
[329226932,1718190642138,-701.7,0.00016711,2]
[329226934,1718190642149,-701.7,0.00016711,2]
[329226936,1718190642160,-366.78342153,0.00016711,2]
[329226938,1718190642171,-508.12188544,0.00016712,2]
[329226940,1718190642181,-500.0,0.00016712,2]
[329226942,1718190642192,-500.0,0.00016712,4]
[329226944,1718190642203,-250.0,0.00016712,2]
[329226946,1718190642214,-537.0375733,0.00016712,2]
[329226948,1718190642226,-500.0,0.00016712,2]
[329226950,1718190642236,-385.07062156,0.00016712,2]
[329226952,1718190642247,-500.0,0.00016712,2]
[329226954,1718190642258,-500.0,0.00016712,2]
[329226956,1718190642269,-500.0,0.00016712,2]
[329226958,1718190642279,-241.67580559,0.00016712,2]
[329226960,1718190642290,-500.0,0.00016712,2]
[329226962,1718190642301,-500.0,0.00016712,2]
[329226964,1718190642313,-500.0,0.00016712,2]
[329226966,1718190642325,-500.0,0.00016712,2]
[329226968,1718190642336,-500.0,0.00016712,2]
[329226970,1718190642346,-500.0,0.00016712,2]
[329226972,1718190642356,-500.0,0.00016712,2]
[329226974,1718190642369,-500.0,0.00016712,2]
[329226976,1718190642380,-500.0,0.00016712,2]
[329226978,1718190642391,-500.0,0.00016712,2]
[329226980,1718190642402,-500.0,0.00016712,2]
[329226982,1718190642413,-500.0,0.00016712,2]
[329226984,1718190642425,-429.94164619,0.00016712,2]
[329226986,1718190642436,-500.0,0.00016712,2]
[329226988,1718190642447,-500.0,0.00016712,2]
[329226990,1718190642459,-500.0,0.00016712,2]
[329226992,1718190642470,-500.0,0.00016712,2]
[329226994,1718190642482,-632.07,0.00016712,2]
[329226996,1718190642494,-500.0,0.00016712,2]
[329226998,1718190642506,-500.0,0.00016712,2]
[329227000,1718190642517,-500.0,0.00016712,2]
[329227002,1718190642529,-500.0,0.00016712,2]
[329227004,1718190642540,-500.0,0.00016712,2]
[329227006,1718190642552,-500.0,0.00016712,2]
[329227008,1718190642564,-324.57038224,0.00016712,2]
[329227010,1718190642575,-500.0,0.00016712,2]
[329227012,1718190642586,-500.0,0.00016712,2]
[329227014,1718190642598,-500.0,0.00016712,2]
[329227016,1718190642609,-500.0,0.00016712,2]
[329227018,1718190642620,-500.0,0.00016712,2]
[329227020,1718190642632,-500.0,0.00016712,2]
[329227022,1718190642642,-500.0,0.00016712,2]
[329227024,1718190642653,-206.84965784,0.00016712,2]
[329227026,1718190642665,-500.0,0.00016712,2]
[329227028,1718190642676,-500.0,0.00016712,2]
[329227030,1718190642687,-500.0,0.00016712,2]
[329227032,1718190642699,-500.0,0.00016712,2]
[329227033,1718190642709,-500.0,0.00016712,2]
[329227034,1718190642720,-500.0,0.00016712,2]
[329227035,1718190642732,-756.75,0.00016712,2]
[329227036,1718190642746,-500.0,0.00016712,2]
[329227037,1718190642757,-500.0,0.00016712,2]
[329227038,1718190642768,-1670.37,0.00016712,2]
[329227039,1718190642779,-500.0,0.00016712,2]
[329227041,1718190642790,-500.0,0.00016712,2]
[329227042,1718190642803,-805.35,0.00016712,2]
[329227044,1718190642815,-500.0,0.00016712,2]
[329227045,1718190642827,-1583.62,0.00016712,2]
[329227046,1718190642837,-6769.46,0.00016712,2]
[329227047,1718190642848,-500.0,0.00016712,2]
[329227048,1718190642858,-743.21,0.00016712,2]
[329227049,1718190642868,-165.58453899,0.00016712,2]
[329227050,1718190642879,-500.0,0.00016712,2]
[329227051,1718190642895,-500.0,0.00016712,2]
[329227053,1718190642920,-502.72338017,0.00016712,2]
[329227055,1718190642932,-500.0,0.00016712,2]
[329227057,1718190642943,-500.0,0.00016712,2]
[329227059,1718190642954,-150.55,0.00016712,2]
[329227061,1718190642965,-3350.52,0.00016712,2]
[329227063,1718190642976,-1152.23,0.00016712,2]
[329227065,1718190642987,-16993.97,0.00016712,2]
[329227066,1718190642998,-500.0,0.00016712,2]
[329227069,1718190643010,-11955.37,0.00016712,2]
[329227071,1718190643021,-500.0,0.00016712,2]
[329227072,1718190643032,-976.27,0.00016712,2]
[329227074,1718190643043,-262.28007136,0.00016712,2]
[329227077,1718190643055,-500.0,0.00016712,2]
[329227078,1718190643066,-3065.45,0.00016712,2]
[329227081,1718190643078,-500.0,0.00016712,2]
[329227083,1718190643089,-500.0,0.00016712,2]
[329227084,1718190643100,-3349.51,0.00016712,2]
[329227086,1718190643112,-511.80827517,0.00016712,2]
[329227089,1718190643123,-500.0,0.00016712,2]
[329227090,1718190643135,-500.0,0.00016712,2]
[329227092,1718190643146,-218.6,0.00016839,2]
[329227094,1718190643157,-856.57381298,0.00016886,2]
[329227097,1718190643169,-701.7,0.00016985,2]
[329227099,1718190643181,-500.0,0.00016986,4]
[329227101,1718190643193,-250.0,0.00016986,2]
[329227102,1718190643205,-500.0,0.00016986,2]
[329227104,1718190643216,-500.0,0.00016986,2]
[329227106,1718190643230,-500.0,0.00016986,2]
[329227108,1718190643241,-500.0,0.00016986,2]
[329227111,1718190643253,-500.0,0.00016986,2]
[329227114,1718190643264,-500.0,0.00016986,2]
[329227117,1718190643276,-500.0,0.00016986,2]
[329227121,1718190643291,-510.86191059,0.00016986,2]
[329227123,1718190643303,-500.0,0.00016986,2]
[329227125,1718190643313,-500.0,0.00016986,2]
[329227127,1718190643324,-500.0,0.00016986,2]
[329227129,1718190643337,-500.0,0.00016986,2]
[329227131,1718190643348,-500.0,0.00016986,2]
[329227133,1718190643359,-632.07,0.00016986,2]
[329227135,1718190643370,-500.0,0.00016986,2]
[329227137,1718190643381,-500.0,0.00016986,2]
[329227139,1718190643392,-254.54796078,0.00016986,2]
[329227141,1718190643402,-500.0,0.00016986,2]
[329227143,1718190643415,-500.0,0.00016986,2]
[329227145,1718190643426,-500.0,0.00016986,2]
[329227146,1718190643439,-500.0,0.00016986,2]
[329227147,1718190643450,-264.33269807,0.00016986,2]
[329227149,1718190643461,-500.0,0.00016986,2]
[329227151,1718190643472,-500.0,0.00016986,2]
[329227153,1718190643485,-500.0,0.00016986,2]
[329227155,1718190643496,-756.75,0.00016986,2]
[329227157,1718190643507,-500.0,0.00016986,2]
[329227159,1718190643521,-500.0,0.00016986,2]
[329227161,1718190643533,-1670.37,0.00016986,2]
[329227163,1718190643544,-500.0,0.00016986,2]
[329227165,1718190643556,-500.0,0.00016986,2]
[329227167,1718190643567,-805.35,0.00016986,2]